fUST/lending_fUST_20251130
["ID","MTS","AMOUNT","RATE_DAILY","PERIOD"]
[395117905,1764455406743,429.13513592,0.00010734,2]
[395117906,1764455407025,164.0,0.00010734,2]
[395117907,1764455407399,-474.5168464,0.00010735,2]
[395117908,1764455407746,500.0,0.00010734,2]
[395117909,1764455409868,-500.0,0.00010735,2]
[395117910,1764455410451,472.57073273,0.00010734,2]
[395117911,1764455411967,-500.0,0.00010735,2]
[395117912,1764455412179,500.0,0.00010734,2]
[395117913,1764455412232,616.94013631,0.00010734,2]
[395117914,1764455413809,500.0,0.00010734,2]
[395117915,1764455414542,-500.0,0.00010735,2]
[395117916,1764455415338,500.0,0.00010734,2]
[395117917,1764455415378,500.0,0.00010734,2]
[395117918,1764455415415,432.55238222,0.00010734,2]
[395117919,1764455415440,67.44761778,0.00010734,2]
[395117920,1764455415479,500.0,0.00010734,2]
[395117921,1764455415532,500.0,0.00010734,2]
[395117922,1764455415582,500.0,0.00010734,2]
[395117923,1764455415667,500.0,0.00010734,2]
[395117924,1764455415730,500.0,0.00010734,2]
[395117925,1764455415775,500.0,0.00010734,2]
[395117926,1764455415817,500.0,0.00010734,2]
[395117927,1764455415860,490.434541,0.00010734,2]
[395117928,1764455415893,500.0,0.00010734,2]
[395117929,1764455415924,500.0,0.00010734,2]
[395117930,1764455415956,500.0,0.00010734,2]
[395117931,1764455415999,500.0,0.00010734,2]
[395117932,1764455416047,-338.15217224,0.00010735,2]
[395117933,1764455416078,500.0,0.00010734,2]
[395117934,1764455416128,500.0,0.00010734,2]
[395117935,1764455416160,500.0,0.00010734,2]
[395117936,1764455416190,500.0,0.00010734,2]
[395117937,1764455416330,500.0,0.00010734,2]
[395117938,1764455416367,500.0,0.00010734,2]
[395117939,1764455416433,500.0,0.00010734,2]
[395117940,1764455418265,-500.0,0.00010735,2]
[395117941,1764455422991,-352.39028387,0.00010735,2]
[395117942,1764455425089,442.12784122,0.00010734,2]
[395117943,1764455425115,57.87215878,0.00010734,2]
[395117944,1764455425147,500.0,0.00010734,2]
[395117945,1764455425178,500.0,0.00010734,2]
[395117946,1764455425209,500.0,0.00010734,2]
[395117947,1764455425251,500.0,0.00010734,2]
[395117948,1764455425317,636.32353989,0.00010734,2]
[395117949,1764455425715,-500.0,0.00010735,2]
[395117984,1764455432151,-407.76641468,0.00010735,2]
[395118052,1764455438397,-195.41222399,0.00010735,2]
[395118055,1764455438411,-706.95306006,0.00010735,2]
[395118056,1764455438423,-381.18565502,0.00010735,2]
[395118063,1764455438496,-287.48678427,0.00010735,2]
[395118153,1764455439627,500.0,0.00010734,2]
[395118160,1764455439698,500.0,0.00010734,2]
[395118164,1764455439731,500.0,0.00010734,2]
[395118170,1764455439792,213.96416976,0.00010734,2]
[395118175,1764455439848,500.0,0.00010734,2]
[395118180,1764455439894,500.0,0.00010734,2]
[395118188,1764455439956,500.0,0.00010734,2]
[395118195,1764455440032,500.0,0.00010734,2]
[395118203,1764455440111,500.0,0.00010734,2]
[395118238,1764455440687,-2e-08,0.00010735,2]
[395118239,1764455440698,-20123.80356931,0.00010735,2]
[395118266,1764455441477,-282.66381212,0.00010735,2]
[395118315,1764455443348,-453.0,0.00010735,2]
[395118317,1764455443459,-1872.93468818,0.00010735,2]
[395118320,1764455443474,-392.66432419,0.00010735,2]
[395118329,1764455444355,-289.0,0.00010735,2]
[395118337,1764455447758,-1063.39028387,0.00010735,2]
[395118338,1764455447820,633.7735273,0.00010628,2]
[395118339,1764455449430,249.54099187,9.232e-05,2]
[395118340,1764455454205,-302.0,0.00010735,2]
[395118341,1764455456365,633.7735273,0.00010628,2]
[395118342,1764455461847,-304.34247359,0.00010735,2]
[395118343,1764455462257,300.0,0.00010734,2]
[395118344,1764455468181,-302.0,0.00010735,2]
[395118345,1764455470349,-302.0,0.00010735,2]
[395118346,1764455472102,-278.37449568,0.00010735,2]
[395118347,1764455472870,500.0,0.00010734,2]
[395118348,1764455473140,500.0,0.00010734,2]
[395118349,1764455473180,274.7620851,0.00010734,2]
[395118350,1764455473205,225.2379149,0.00010734,2]
[395118351,1764455473463,500.0,0.00010734,2]
[395118352,1764455473502,500.0,0.00010734,2]
[395118353,1764455473541,500.0,0.00010734,2]
[395118354,1764455473765,500.0,0.00010734,2]
[395118355,1764455473804,500.0,0.00010734,2]
[395118356,1764455473838,500.0,0.00010734,2]
[395118357,1764455473871,500.0,0.00010734,2]
[395118358,1764455473907,500.0,0.00010734,2]
[395118359,1764455473940,373.87009415,0.00010734,2]
[395118360,1764455473984,500.0,0.00010734,2]
[395118361,1764455474021,500.0,0.00010734,2]
[395118362,1764455474061,500.0,0.00010734,2]
[395118363,1764455474101,500.0,0.00010734,2]
[395118364,1764455474141,500.0,0.00010734,2]
[395118365,1764455474175,500.0,0.00010734,2]
[395118366,1764455474208,636.32353989,0.00010734,2]
[395118367,1764455474582,500.0,0.00010734,2]
[395118368,1764455475539,945.63566087,8.907e-05,2]
[395118369,1764455476180,318.94279019,9.589e-05,2]
[395118370,1764455476203,626.69287068,9.589e-05,2]
[395118371,1764455476859,945.63566087,0.00010272,2]
[395118372,1764455478362,-302.0,0.00010735,2]
[395118373,1764455481888,-302.0,0.00010735,2]
[395118374,1764455484474,-209.28303073,0.00010735,2]
[395118375,1764455484791,500.0,0.00010734,2]
[395118376,1764455485075,500.0,0.00010734,2]
[395118377,1764455485400,500.0,0.00010734,2]
[395118378,1764455486496,500.0,0.00010734,2]
[395118379,1764455486539,500.0,0.00010734,2]
[395118380,1764455486574,502.54994588,0.00010734,2]
[395118381,1764455486609,-909.28303073,0.00010735,2]
[395118382,1764455486648,500.0,0.00010734,2]
[395118383,1764455486708,500.0,0.00010734,2]
[395118384,1764455486762,500.0,0.00010734,2]
[395118385,1764455486817,500.0,0.00010734,2]
[395118386,1764455486871,500.0,0.00010734,2]
[395118387,1764455486939,500.0,0.00010734,2]
[395118388,1764455486993,500.0,0.00010734,2]
[395118389,1764455487050,500.0,0.00010734,2]
[395118390,1764455487099,500.0,0.00010734,2]
[395118391,1764455487155,500.0,0.00010734,2]
[395118392,1764455487199,425.13152257,0.00010734,2]
[395118393,1764455487224,74.86847743,0.00010734,2]
[395118394,1764455487258,500.0,0.00010734,2]
[395118395,1764455487305,500.0,0.00010734,2]
[395118396,1764455487361,500.0,0.00010734,2]
[395118397,1764455487399,500.0,0.00010734,2]
[395118398,1764455487447,513.63677224,0.00010734,2]
[395118399,1764455487478,500.0,0.00010734,2]
[395118400,1764455487509,1000.0,0.00010735,2]
[395118401,1764455487544,500.0,0.00010734,2]
[395118402,1764455488312,1067.5058219,0.00010735,2]
[395118403,1764455489282,-302.06583249,0.00010735,2]
[395118404,1764455491215,-1000.0,0.00010735,2]
[395118405,1764455493569,-407.21719824,0.00010735,2]
[395118406,1764455496656,-756.32316061,0.00010735,2]
[395118407,1764455496714,344.4314042,0.00010734,2]
[395118408,1764455496745,500.0,0.00010734,2]
[395118409,1764455496788,500.0,0.00010734,2]
[395118410,1764455496825,500.0,0.00010734,2]
[395118411,1764455496880,500.0,0.00010734,2]
[395118412,1764455496918,624.94086389,0.00010734,2]
[395118413,1764455496951,500.0,0.00010734,2]
[395118414,1764455497004,500.0,0.00010734,2]
[395118415,1764455497049,374.62666034,0.00010734,2]
[395118416,1764455497074,125.37333966,0.00010734,2]
[395118417,1764455497118,500.0,0.00010734,2]
[395118418,1764455497153,500.0,0.00010734,2]
[395118419,1764455497190,500.0,0.00010734,2]
[395118420,1764455497222,500.0,0.00010734,2]
[395118421,1764455497254,500.0,0.00010734,2]
[395118422,1764455497287,500.0,0.00010734,2]
[395118423,1764455497344,500.0,0.00010734,2]
[395118424,1764455497446,166.4627417,9.232e-05,2]
[395118425,1764455504063,438.909,0.00010521,2]
[395118426,1764455504170,184.60867399,0.00010521,2]
[395118427,1764455514500,5584.65624465,0.00010628,2]
[395118428,1764455514525,4415.35375535,0.00010628,2]
[395118429,1764455520162,500.0,0.00010734,2]
[395118430,1764455520204,500.0,0.00010734,2]
[395118431,1764455520240,409.5389643,0.00010734,2]
[395118432,1764455520491,500.0,0.00010734,2]
[395118433,1764455520539,500.0,0.00010734,2]
[395118434,1764455520580,500.0,0.00010734,2]
[395118435,1764455520623,500.0,0.00010734,2]
[395118436,1764455520657,500.0,0.00010734,2]
[395118437,1764455520694,292.66700048,0.00010734,2]
[395118438,1764455522607,300.0,0.00010734,2]
[395118439,1764455522691,152.35361628,0.00010628,2]
[395118440,1764455530783,500.0,0.00010734,2]
[395118441,1764455530817,430.09666359,0.00010734,2]
[395118442,1764455530843,69.90333641,0.00010734,2]
[395118443,1764455531083,500.0,0.00010734,2]
[395118444,1764455531119,500.0,0.00010734,2]
[395118445,1764455531408,500.0,0.00010734,2]
[395118446,1764455531779,500.0,0.00010734,2]
[395118447,1764455532098,500.0,0.00010734,2]
[395118448,1764455532495,500.0,0.00010734,2]
[395118449,1764455533010,500.0,0.00010734,2]
[395118450,1764455533292,500.0,0.00010734,2]
[395118451,1764455533428,500.0,0.00010734,2]
[395118452,1764455538243,5430.10666359,0.00010628,2]
[395118453,1764455538269,7588.51216518,0.00010628,2]
[395118454,1764455538967,500.0,0.00010734,2]
[395118455,1764455549172,500.0,0.00010734,2]
[395118456,1764455572600,1200.0,0.00010734,2]
[395118457,1764455582241,211.49783482,0.00010734,2]
[395118458,1764455582284,88.50216518,0.00010734,2]
[395118459,1764455585369,500.0,0.00010734,2]
[395118460,1764455585426,500.0,0.00010734,2]
[395118461,1764455585483,410.19140035,0.00010734,2]
[395118462,1764455605089,1096.29282626,0.00010635,2]
[395118463,1764455608140,160.95372986,8.907e-05,2]
[395118464,1764455642556,300.0,0.00010734,2]
[395118465,1764455656464,500.0,0.00010734,2]
[395118466,1764455656496,500.0,0.00010734,2]
[395118467,1764455656528,500.0,0.00010734,2]
[395118468,1764455656564,282.24973659,0.00010734,2]
[395118469,1764455656594,500.0,0.00010734,2]
[395118470,1764455656632,500.0,0.00010734,2]
[395118471,1764455656680,500.0,0.00010734,2]
[395118472,1764455656714,500.0,0.00010734,2]
[395118473,1764455656755,500.0,0.00010734,2]
[395118474,1764455656789,500.0,0.00010734,2]
[395118475,1764455656819,500.0,0.00010734,2]
[395118476,1764455656855,500.0,0.00010734,2]
[395118477,1764455656937,500.0,0.00010734,2]
[395118478,1764455656967,500.0,0.00010734,2]
[395118479,1764455656999,161.82014176,0.00010734,2]
[395118480,1764455657022,338.17985824,0.00010734,2]
[395118481,1764455657061,500.0,0.00010734,2]
[395118482,1764455657092,500.0,0.00010734,2]
[395118483,1764455657131,500.0,0.00010734,2]
[395118484,1764455676223,500.0,0.00010734,2]
[395118485,1764455676256,174.09770375,0.00010734,2]
[395118486,1764455676290,316.75512183,0.00010734,2]
[395118487,1764455680113,500.0,0.00010734,2]
[395118488,1764455680156,500.0,0.00010734,2]
[395118489,1764455680212,500.0,0.00010734,2]
[395118490,1764455680287,500.0,0.00010734,2]
[395118491,1764455680339,581.79723293,0.00010734,2]
[395118492,1764455682905,156.68576814,0.00010682,2]
[395118493,1764455685046,500.0,0.00010734,2]
[395118494,1764455685104,500.0,0.00010734,2]
[395118495,1764455685141,225.33404117,0.00010734,2]
[395118496,1764455687805,500.0,0.00010734,2]
[395118497,1764455687847,500.0,0.00010734,2]
[395118498,1764455687887,500.0,0.00010734,2]
[395118499,1764455695938,500.0,0.00010734,2]
[395118500,1764455695977,186.10803226,0.00010734,2]
[395118501,1764455696018,500.0,0.00010734,2]
[395118502,1764455696056,500.0,0.00010734,2]
[395118503,1764455696103,21.05224168,0.00010734,2]
[395118504,1764455696125,478.94775832,0.00010734,2]
[395118505,1764455696162,500.0,0.00010734,2]
[395118506,1764455701229,289.0,0.00010734,2]
[395118507,1764455702566,300.0,0.00010734,2]
[395118508,1764455704401,405.32970501,0.00010734,2]
[395118509,1764455704674,839.9487768,9.232e-05,2]
[395118510,1764455707318,1200.0,0.00010734,2]
[395118511,1764455710713,500.0,0.00010734,2]
[395118512,1764455710768,500.0,0.00010734,2]
[395118513,1764455710824,500.0,0.00010734,2]
[395118514,1764455710890,538.74574048,0.00010734,2]
[395118515,1764455711389,4926.98577771,0.00010628,2]
[395118516,1764455711411,5073.02422229,0.00010628,2]
[395118517,1764455711943,500.0,0.00010734,2]
[395118518,1764455711985,500.0,0.00010734,2]
[395118519,1764455712024,500.0,0.00010734,2]
[395118520,1764455712063,500.0,0.00010734,2]
[395118521,1764455712101,500.0,0.00010734,2]
[395118522,1764455712132,500.0,0.00010734,2]
[395118523,1764455712174,500.0,0.00010734,2]
[395118524,1764455712210,500.0,0.00010734,2]
[395118525,1764455712240,500.0,0.00010734,2]
[395118526,1764455712270,426.98577771,0.00010734,2]
[395118527,1764455712293,73.01422229,0.00010734,2]
[395118528,1764455712322,500.0,0.00010734,2]
[395118529,1764455712354,500.0,0.00010734,2]
[395118530,1764455712404,522.37925409,0.00010734,2]
[395118531,1764455712455,500.0,0.00010734,2]
[395118532,1764455712519,248.71531821,0.00010735,2]
[395118533,1764455718481,300.0,0.00010734,2]
[395118534,1764455724221,153.34247359,0.00010735,2]
[395118535,1764455726397,151.0,0.00010735,2]
[395118536,1764455727001,151.0,0.00010735,2]
[395118537,1764455727597,151.0,0.00010735,2]
[395118538,1764455728195,151.0,0.00010735,2]
[395118539,1764455728833,151.0,0.00010735,2]
[395118540,1764455729450,151.0,0.00010735,2]
[395118541,1764455730234,151.0,0.00010735,2]
[395118542,1764455730653,151.0,0.00010735,2]
[395118543,1764455731255,151.0,0.00010735,2]
[395118544,1764455731956,151.0,0.00010735,2]
[395118545,1764455732547,151.0,0.00010735,2]
[395118546,1764455733159,151.0,0.00010735,2]
[395118547,1764455733753,151.0,0.00010735,2]
[395118549,1764455734375,151.0,0.00010735,2]
[395118550,1764455734971,151.0,0.00010735,2]
[395118552,1764455735580,151.0,0.00010735,2]
[395118553,1764455736252,151.0,0.00010735,2]
[395118554,1764455736856,151.0,0.00010735,2]
[395118555,1764455737482,151.0,0.00010735,2]
[395118557,1764455738094,151.0,0.00010735,2]
[395118558,1764455762417,300.0,0.00010734,2]
[395118564,1764455783462,-310.69199052,0.00010735,2]
[395118565,1764455785657,-4653.68138039,0.00010735,2]
[395118567,1764455787711,-300.0,0.00010735,2]
[395118571,1764455800906,402.87942709,0.00010734,2]
[395118575,1764455813817,299.18983766,0.00010734,2]
[395118576,1764455813855,500.0,0.00010734,2]
[395118577,1764455813898,500.0,0.00010734,2]
[395118578,1764455813937,280.6470884,0.00010734,2]
[395118579,1764455813968,500.0,0.00010734,2]
[395118580,1764455814002,500.0,0.00010734,2]
[395118582,1764455814033,499.99999999,0.00010734,2]
[395118583,1764455814073,399.84237868,0.00010734,2]
[395118584,1764455814096,148.61306913,0.00010734,2]
[395118585,1764455822207,300.0,0.00010734,2]
[395118586,1764455823188,500.0,0.00010734,2]
[395118587,1764455823224,500.0,0.00010734,2]
[395118588,1764455823282,500.0,0.00010734,2]
[395118589,1764455823314,500.0,0.00010734,2]
[395118590,1764455823356,243.88767577,0.00010734,2]
[395118591,1764455823388,500.0,0.00010734,2]
[395118592,1764455823466,300.0,0.00010734,2]
[395118593,1764455857035,456.4980665,0.00010032,2]
[395118594,1764455873575,1200.0,0.00010734,2]
[395118595,1764455882265,300.0,0.00010734,2]
[395118596,1764455942888,300.0,0.00010734,2]
[395118597,1764455945526,156.68793337,0.00010734,2]
[395118598,1764455960043,282.01559897,0.00010734,2]
[395118599,1764455961615,500.0,0.00010734,2]
[395118600,1764455961672,475.80552629,0.00010734,2]
[395118602,1764455970536,500.0,0.00010734,2]
[395118603,1764455970596,500.0,0.00010734,2]
[395118604,1764455970643,500.0,0.00010734,2]
[395118605,1764455970692,500.0,0.00010734,2]
[395118606,1764455970748,225.07031275,0.00010734,2]
[395118607,1764455975955,500.0,0.00010734,2]
[395118608,1764455976206,111.43181722,0.00010734,2]
[395118609,1764455976235,392.33857864,0.00010734,2]
[395118610,1764455985924,298.45644803,0.00010734,2]
[395118611,1764455999423,720.0932093,9.232e-05,2]
[395118612,1764456000876,226.5273045,0.00010734,2]
[395118613,1764456001698,500.0,0.00010734,2]
[395118614,1764456001750,480.26436157,0.00010734,2]
[395118615,1764456002032,300.0,0.00010734,2]
[395118616,1764456004122,238.0,0.00010735,2]
[395118617,1764456006760,1200.0,0.00010734,2]
[395118618,1764456010633,300.0,0.00010734,2]
[395118619,1764456014878,248.71531821,0.00010735,2]
[395118620,1764456016176,1304.18099458,0.00010628,2]
[395118621,1764456026975,151.0,0.00010735,2]
[395118622,1764456027716,151.0,0.00010735,2]
[395118623,1764456028211,151.0,0.00010735,2]
[395118624,1764456028820,151.0,0.00010735,2]
[395118625,1764456030044,151.0,0.00010735,2]
[395118626,1764456031008,151.0,0.00010735,2]
[395118627,1764456031840,151.0,0.00010735,2]
[395118628,1764456032224,-263.28348411,0.00010735,2]
[395118629,1764456033118,-7678.77353659,0.00010735,2]
[395118630,1764456033140,-10000.01,0.00010735,2]
[395118631,1764456033225,-10000.01,0.00010735,2]
[395118632,1764456033446,-10000.01,0.00010735,2]
[395118633,1764456033570,-10000.01,0.00010735,2]
[395118634,1764456033688,-10000.01,0.00010735,2]
[395118635,1764456035444,-10000.01,0.00010735,2]
[395118636,1764456035713,-10000.01,0.00010735,2]
[395118637,1764456035871,-10000.01,0.00010735,2]
[395118638,1764456062407,300.0,0.00010734,2]
[395118639,1764456104060,351.127,0.00010521,2]
[395118640,1764456122579,300.0,0.00010734,2]
[395118641,1764456171042,500.0,0.00010734,2]
[395118642,1764456171102,256.11232423,0.00010734,2]
[395118643,1764456171265,500.0,0.00010734,2]
[395118644,1764456171300,500.0,0.00010734,2]
[395118645,1764456171336,220.93781097,0.00010734,2]
[395118646,1764456171371,500.0,0.00010734,2]
[395118647,1764456171405,500.0,0.00010734,2]
[395118648,1764456171640,500.0,0.00010734,2]
[395118649,1764456171682,500.0,0.00010734,2]
[395118650,1764456171724,500.0,0.00010734,2]
[395118651,1764456171758,500.0,0.00010734,2]
[395118652,1764456171792,500.0,0.00010734,2]
[395118653,1764456171822,500.0,0.00010734,2]
[395118654,1764456171859,500.0,0.00010734,2]
[395118655,1764456171894,500.0,0.00010734,2]
[395118656,1764456171926,500.0,0.00010734,2]
[395118657,1764456172365,1200.0,0.00010734,2]
[395118658,1764456182284,300.0,0.00010734,2]
[395118659,1764456197342,71.8328648,0.00010735,2]
[395118660,1764456197371,197.0093852,0.00010735,2]
[395118661,1764456242397,300.0,0.00010734,2]
[395118662,1764456261156,9503.0006148,0.00010635,2]
[395118663,1764456261183,10000.01,0.00010635,2]
[395118664,1764456261209,10000.01,0.00010635,2]
[395118665,1764456261237,10000.01,0.00010635,2]
[395118666,1764456261263,10000.01,0.00010635,2]
[395118667,1764456261287,10000.01,0.00010635,2]
[395118668,1764456266488,163.58470311,9.232e-05,2]
[395118669,1764456267605,341.14436483,8.907e-05,2]
[395118670,1764456268278,341.14436483,9.9e-05,2]
[395118671,1764456271432,319.08426268,9.232e-05,2]
[395118672,1764456273136,280.59644433,8.907e-05,2]
[395118673,1764456273774,280.59644433,9.9e-05,2]
[395118674,1764456273968,-197.41091927,0.00010634,2]
[395118675,1764456274001,-500.0,0.00010634,2]
[395118676,1764456274033,-202.6392771,0.00010634,2]
[395118677,1764456274065,-500.0,0.00010634,2]
[395118678,1764456274098,-247.23003475,0.00010634,2]
[395118679,1764456274131,-246.77086789,0.00010634,2]
[395118680,1764456276211,900.05019637,0.00010528,2]
[395118681,1764456283915,5311.85760561,0.00010529,2]
[395118682,1764456283941,5471.1918102,0.00010529,2]
[395118683,1764456292454,150.0,0.00010529,2]
[395118684,1764456300223,4378.8181898,0.00010529,2]
[395118685,1764456300249,10000.01,0.00010529,2]
[395118686,1764456300273,8757.21831963,0.00010529,2]
[395118687,1764456302407,300.0,0.00010634,2]
[395118688,1764456304605,294.6130348,0.00010388,2]
[395118689,1764456306442,266.80151253,9.232e-05,2]
[395118690,1764456306984,381.37713304,0.00010634,2]
[395118691,1764456307010,818.62286696,0.00010634,2]
[395118692,1764456307270,530.30346264,0.00010387,2]
[395118693,1764456309973,942.76171137,0.00010387,2]
[395118694,1764456313003,1473.06517401,0.00010387,2]
[395118697,1764456315850,2121.21385057,0.00010387,2]
[395118698,1764456318948,2887.20774106,0.00010387,2]
[395118699,1764456321527,3518.52323436,0.00010387,2]
[395118700,1764456321551,252.52361111,0.00010387,2]
[395118701,1764456322062,3084.71688333,0.00010535,2]
[395118702,1764456322506,6662.76950556,0.00010529,2]
[395118703,1764456322533,10000.01,0.00010529,2]
[395118704,1764456329096,169.764029,4.973e-05,2]
[395118705,1764456329295,169.764029,7.459e-05,2]
[395118706,1764456329490,169.764029,9.946e-05,2]
[395118707,1764456331308,4342.56787963,0.00010283,2]
[395118708,1764456353195,4760.34611228,0.00010283,2]
[395118711,1764456511574,203.8110252,9.688e-05,2]
[395118712,1764456541681,17357.1549787,9.688e-05,2]
[395118713,1764456546117,-300.0,0.00010179,2]
[395118714,1764456546137,-300.0,0.00010282,2]
[395118715,1764456546156,-374.0239046,0.00010334,2]
[395118716,1764456546175,-1200.0,0.00010386,2]
[395118717,1764456546194,-300.0,0.00010386,2]
[395118718,1764456546213,-491.84749397,0.00010386,2]
[395118719,1764456546236,-4772.73116379,0.00010387,2]
[395118720,1764456546256,-5892.26069604,0.00010387,2]
[395118721,1764456546277,-1738.44272972,0.00010387,2]
[395118722,1764456555107,-5391.19271249,0.00010387,2]
[395118723,1764456555126,-8476.3705469,0.00010387,2]
[395118724,1764456555147,-370.45916579,0.00010387,2]
[395118725,1764456555166,-423.38190376,0.00010387,2]
[395118726,1764456555185,-661.53422463,0.00010387,2]
[395118727,1764456555205,-952.60928346,0.00010387,2]
[395118728,1764456555228,-1296.60708027,0.00010387,2]
[395118729,1764456555248,-1693.52761504,0.00010387,2]
[395118730,1764456555268,-2143.37088779,0.00010387,2]
[395118731,1764456555287,-2646.13689851,0.00010387,2]
[395118732,1764456555307,-3201.82564719,0.00010387,2]
[395118733,1764456555326,-3810.43713385,0.00010387,2]
[395118734,1764456555344,-4471.97135848,0.00010387,2]
[395118735,1764456555364,-5186.42832107,0.00010387,2]
[395118736,1764456555383,-4272.47437197,0.00010387,2]
[395118737,1764456559081,-38251.13503856,0.00010283,2]
[395118738,1764456559100,-1681.33364967,0.00010387,2]
[395118739,1764456559122,-6774.11046018,0.00010387,2]
[395118740,1764456559144,-7647.33563669,0.00010387,2]
[395118741,1764456559164,-8573.48355116,0.00010387,2]
[395118742,1764456559188,-4585.91124111,0.00010387,2]
[395118743,1764456562105,-4966.6429625,0.00010387,2]
[395118744,1764456562126,-867.67183225,0.00010387,2]
[395118745,1764456567111,-2957.3390286,0.00010283,2]
[395118746,1764456567134,-9706.29121419,0.00010387,2]
[395118747,1764456567156,-44762.04156886,0.00010387,2]
[395118748,1764456573099,-2685.54111688,0.00010387,2]
[395118757,1764456632348,-2552.41731426,0.00010387,2]
[395118759,1764456632359,-300.0,0.00010634,2]
[395118761,1764456632368,-807.39106702,0.00010634,2]
[395118763,1764456632379,-392.60893298,0.00010634,2]
[395118765,1764456632397,-250.69722904,0.00010635,2]
[395118767,1764456632409,-248.71531821,0.00010635,2]
[395118769,1764456632423,-278.78941325,0.00010635,2]
[395118770,1764456632433,-151874.18415214,0.00010635,2]
[395118798,1764456638569,-344.29324578,0.00010634,2]
[395118799,1764456638579,-29616.13707646,0.00010635,2]
[395118948,1764456640717,-0.00186899,0.00010635,2]
[395119849,1764456649627,247.7918832,8.907e-05,2]
[395121902,1764456680031,962.3554401,8.907e-05,2]
[395121904,1764456680694,962.3554401,9.548e-05,2]
[395121905,1764456681367,962.3554401,0.00010188,2]
[395121906,1764456708179,206.24786756,8.907e-05,2]
[395121907,1764456712598,232.10285444,8.907e-05,2]
[395121911,1764456769632,247.59829114,8.907e-05,2]
[395121912,1764456774619,151.14494876,8.907e-05,2]
[395121914,1764456782311,151.76,1e-05,2]
[395121915,1764456782606,151.76,1.5e-05,2]
[395121916,1764456782907,151.76,2e-05,2]
[395121917,1764456783201,151.76,2.5e-05,2]
[395121918,1764456783482,151.76,3e-05,2]
[395121919,1764456785628,172.07271802,8.907e-05,2]
[395121934,1764456835774,270.23047539,0.00010217,2]
[395121936,1764456839120,310.63960241,8.907e-05,2]
[395121938,1764456841442,232.05918274,9.232e-05,2]
[395121939,1764456843808,270.23047539,0.00010217,2]
[395121946,1764456852074,270.23047539,0.00010217,2]
[395121949,1764456855119,236.88131701,8.907e-05,2]
[395121951,1764456859821,316.28779733,0.00010268,2]
[395121955,1764456867064,-373.08342651,0.00010371,2]
[395121956,1764456867089,-529.55,0.00010423,2]
[395121957,1764456867113,-879.14865321,0.00010634,2]
[395121959,1764456871329,-320.85134679,0.00010634,2]
[395121960,1764456871350,-300.0,0.00010634,2]
[395121961,1764456871370,-488.98030745,0.00010634,2]
[395121962,1764456871389,-359.22941076,0.00010634,2]
[395121964,1764456874014,-141.90382074,0.00010634,2]
[395121965,1764456874039,-133.41159226,0.00010634,2]
[395121966,1764456877108,-366.58840774,0.00010634,2]
[395121967,1764456877133,-500.0,0.00010634,2]